bitfinex/quotes_ETHUSD_20241225
["timestamp","ask_amount","ask_price","bid_price","bid_amount"]
[1735113722580,2.86631,3488.8,3488.1,0.828]
[1735113723042,2.86672,3488.3,3487.7,0.8194]
[1735113723487,2.86664,3488.4,3487.7,0.8194]
[1735113724349,2.86664,3488.4,3487.8,0.0367078]
[1735113724544,3.64736,3488.5,3487.8,0.0367078]
[1735113726281,2.86671,3488.4,3487.8,0.0367078]
[1735113727974,0.364736,3488.5,3487.8,0.0367078]
[1735113728171,2.8663,3488.9,3487.9,0.8194]
[1735113728482,2.8663,3488.9,3487.9,2.90373083]
[1735113728689,2.8663,3488.9,3488.1,0.8194]
[1735113729060,2.8663,3488.9,3488.2,0.03663992]
[1735113730483,0.6812222,3489.2,3488.3,0.8194]
[1735113730484,2.86605,3489.2,3488.3,0.8194]
[1735113730999,2.86605,3489.2,3488.4,0.03660599]
[1735113731277,2.86607,3489.1,3488.4,0.03660599]
[1735113735917,1.19799742,3489.6,3488.5,0.7687]
[1735113736145,2.86584,3489.4,3488.6,0.7687]
[1735113736424,2.86598,3489.3,3488.6,0.80540631]
[1735113737911,2.86563,3489.7,3488.6,0.80540631]
[1735113738113,0.7796,3489.6,3488.6,0.80540631]
[1735113738312,2.86639,3488.7,3488.6,0.03670631]
[1735113738627,2.86648,3488.6,3488.3,0.7687]
[1735113738823,3.932629,3488.7,3488.6,0.03652725]
[1735113739028,2.86674,3488.3,3488.0,1.97163157]
[1735113739452,2.86674,3488.3,3488.1,0.03661208]
[1735113740401,2.86674,3488.3,3488.0,0.7687]
[1735113740616,2.86674,3488.3,3488.2,0.03659511]
[1735113740787,2.86674,3488.3,3488.0,0.7687]
[1735113741006,2.86674,3488.3,3488.2,0.03659511]
[1735113741221,2.86674,3488.3,3488.0,0.7687]
[1735113741402,2.86674,3488.3,3488.2,0.03659511]
[1735113741618,2.86674,3488.3,3488.0,0.7687]
[1735113741794,2.86674,3488.3,3488.2,0.03659511]
[1735113742126,2.86674,3488.3,3488.0,0.7687]
[1735113742426,2.86674,3488.3,3488.1,0.03661208]
[1735113742613,2.86674,3488.3,3488.0,0.7687]
[1735113742816,2.86674,3488.3,3488.2,0.03659511]
[1735113743021,2.86674,3488.3,3488.0,0.7687]
[1735113743193,2.86674,3488.3,3488.2,0.03659511]
[1735113743392,2.86674,3488.3,3488.0,0.7687]
[1735113743659,2.86674,3488.3,3488.2,0.03659511]
[1735113743796,2.86636,3488.8,3488.1,0.03661208]
[1735113743995,2.86636,3488.8,3488.2,0.03659511]
[1735113744236,2.86636,3488.8,3488.0,0.7687]
[1735113744832,2.86636,3488.8,3488.1,0.03695903]
[1735113746739,2.86617,3489.0,3488.2,0.8087]
[1735113746938,6.15168198,3489.4,3488.3,0.03692509]
[1735113746939,4.22888668,3489.4,3488.3,0.03692509]
[1735113747143,2.86623,3488.9,3488.3,0.03692509]
[1735113747341,4.22888668,3489.4,3488.3,0.03692509]
[1735113747342,0.8009,3489.4,3488.3,0.03692509]
[1735113747673,4.06367742,3489.6,3488.6,0.8135]
[1735113748031,4.06367742,3489.6,3488.8,0.8135]
[1735113748367,4.06367742,3489.6,3488.9,0.03667221]
[1735113748718,4.06367742,3489.6,3488.8,0.8135]
[1735113749069,4.06367742,3489.6,3488.9,0.03667221]
[1735113749070,2.86568,3489.6,3488.9,0.03667221]
[1735113749920,4.73559272,3490.2,3489.0,0.8135]
[1735113750120,4.73559272,3490.2,3489.1,0.03644807]
[1735113750345,1.14709,3490.1,3489.1,0.03644807]
[1735113751834,2.86543,3489.9,3489.1,0.03644807]
[1735113752856,1.14709,3490.1,3489.1,0.03644807]
[1735113753058,0.81298449,3490.0,3489.1,0.03644807]
[1735113753747,2.86549,3489.9,3489.1,0.03644807]
[1735113758460,1.14709,3490.1,3489.2,0.8135]
[1735113758764,1.14709,3490.1,3489.6,2.86563]
[1735113758922,1.14709,3490.1,3489.7,0.8135]
[1735113759123,1.19799742,3490.6,3489.8,0.84901266]
[1735113759866,2.34482642,3490.6,3489.9,0.8135]
[1735113760023,1.19799742,3490.6,3490.0,2.86531]
[1735113760227,1.19799742,3490.6,3490.0,0.03533894]
[1735113760430,1.19799742,3490.6,3490.1,0.8135]
[1735113760646,2.86435,3491.2,3490.1,0.8135]
[1735113760965,0.8135,3490.8,3490.3,0.8135]
[1735113761167,0.8135,3490.8,3490.4,0.03527115]
[1735113762230,2.86443,3491.1,3490.4,0.03527115]
[1735113762231,0.58462553,3491.2,3490.4,0.03527115]
[1735113762573,2.86429,3491.3,3490.4,0.03527115]
[1735113762574,1.14665,3491.1,3490.5,0.8295]
[1735113762774,2.86405,3491.6,3490.5,0.8295]
[1735113762946,2.86411,3491.5,3490.6,0.86473726]
[1735113767373,1.146577,3491.6,3490.6,0.86473726]
[1735113767574,1.146577,3491.6,3490.8,0.8295]
[1735113767790,4.010607,3491.6,3490.8,0.8295]
[1735113767967,4.010607,3491.6,3490.9,0.03440386]
[1735113772291,2.86412,3491.5,3490.9,0.03440386]
[1735113773497,0.4010697,3491.5,3490.9,0.03440386]
[1735113773660,2.8644,3491.2,3490.9,0.03440386]
[1735113773854,2.86442,3491.2,3490.9,0.03440386]
[1735113774080,0.8091,3491.5,3490.8,0.8295]
[1735113774408,2.86444,3491.1,3490.8,0.8295]
[1735113774560,2.86444,3491.1,3490.2,0.7978]
[1735113774760,2.86444,3491.1,3490.3,0.03323179]
[1735113774983,2.86418,3491.4,3490.3,0.03323179]
[1735113775173,2.8646,3490.9,3490.3,0.03323179]
[1735113775974,2.86426,3491.3,3490.3,0.03323179]
[1735113776202,2.86493,3490.5,3490.3,0.03323179]
[1735113776361,2.8645,3491.0,3490.3,0.03323179]
[1735113776554,2.8645,3491.0,3489.9,0.7978]
[1735113776555,2.86477,3490.7,3489.9,0.7978]
[1735113776898,2.86492,3490.5,3490.0,0.03365148]
[1735113778976,2.86476,3490.7,3490.0,0.03365148]
[1735113780224,2.86491,3490.6,3490.0,0.03365148]
[1735113781224,2.86496,3490.5,3490.0,0.03365148]
[1735113781427,2.86467,3490.8,3490.0,0.03365148]
[1735113781613,2.86524,3490.1,3490.0,0.03365148]
[1735113781820,3.62104,3490.1,3490.0,0.03365148]
[1735113782125,3.62104,3490.1,3489.4,0.8035]
[1735113782126,2.86556,3489.8,3489.4,0.8035]
[1735113784488,2.86556,3489.8,3489.5,0.03276597]
[1735113784710,2.86556,3489.8,3489.4,0.8035]
[1735113784927,2.86557,3489.7,3489.4,0.8035]
[1735113785832,0.7558,3490.1,3489.4,0.8035]
[1735113786131,0.41953742,3490.0,3489.1,0.8035]
[1735113786290,2.86585,3489.4,3489.1,0.8035]
[1735113786633,2.86585,3489.4,3489.2,0.03281684]
[1735113786800,2.8659,3489.3,3489.2,0.03281684]
[1735113787216,2.86623,3488.9,3488.5,0.8035]
[1735113787728,2.86623,3488.9,3488.6,0.03395276]
[1735113788133,0.7558,3489.4,3488.6,0.03395276]
[1735113788134,2.86639,3488.7,3488.6,0.03395276]
[1735113788494,2.86639,3488.7,3488.2,0.8035]
[1735113788692,2.86639,3488.7,3488.6,0.03395276]
[1735113788921,2.86639,3488.7,3488.2,0.8035]
[1735113789106,2.86639,3488.7,3488.6,0.03395276]
[1735113789310,2.86639,3488.7,3488.2,0.8035]
[1735113789514,2.86639,3488.7,3488.6,0.03395276]
[1735113789714,2.86639,3488.7,3488.2,0.8035]
[1735113789898,2.86639,3488.7,3488.6,0.03395276]
[1735113790105,2.86639,3488.7,3488.2,0.8035]
[1735113790403,0.55,3489.2,3488.2,0.8035]
[1735113790622,2.86658,3488.5,3488.3,0.03400366]
[1735113791136,2.86658,3488.5,3487.5,0.8035]
[1735113791631,2.86658,3488.5,3487.6,0.03505088]
[1735113792633,2.86675,3488.3,3487.6,0.03505088]
[1735113792995,2.86631,3488.8,3487.6,0.03505088]
[1735113793223,2.86656,3488.5,3487.6,0.03505088]
[1735113794221,2.86656,3488.5,3487.7,0.8109]
[1735113794735,2.86656,3488.5,3487.8,0.03515684]
[1735113795346,3.270238,3488.8,3487.8,0.03515684]
[1735113795530,2.86674,3488.3,3487.8,0.03515684]
[1735113795936,2.86674,3488.3,3487.7,0.8109]
[1735113796138,2.86674,3488.3,3487.9,0.03512867]
[1735113796297,2.86674,3488.3,3487.8,0.03514564]
[1735113796637,2.86674,3488.3,3487.9,0.03512867]
[1735113797021,0.286674,3488.3,3487.7,0.8109]
[1735113797334,2.86689,3488.1,3487.7,0.8109]
[1735113797506,2.867,3488.0,3487.8,0.03574991]
[1735113797922,2.867,3488.0,3487.7,0.8109]
[1735113799350,0.8303,3488.5,3487.7,0.8109]
[1735113799501,2.86683,3488.2,3487.8,0.03574991]
[1735113799851,2.86683,3488.2,3487.7,0.8109]
[1735113800233,2.86683,3488.2,3487.8,0.03574991]
[1735113800631,2.86683,3488.2,3487.7,0.8109]
[1735113801016,0.369713,3488.2,3487.8,0.03574991]
[1735113801242,2.86705,3487.9,3487.8,0.03574991]
[1735113801458,2.86705,3487.9,3487.4,0.8109]
[1735113801837,3.236583,3488.2,3487.5,0.03580083]
[1735113802038,2.86708,3487.9,3487.5,0.03580083]
[1735113802763,2.86716,3487.8,3487.5,0.03580083]
[1735113803568,0.369713,3488.2,3487.5,0.03580083]
[1735113803769,2.86682,3488.2,3487.5,0.03580083]
[1735113805562,0.57579402,3488.4,3487.5,0.03580083]
[1735113805722,2.86692,3488.1,3487.5,0.03580083]
[1735113805927,0.57579402,3488.4,3487.5,0.03580083]
[1735113806127,2.86706,3487.9,3487.5,0.03580083]
[1735113806553,2.86717,3487.8,3487.5,0.03580083]
[1735113806754,2.86717,3487.8,3487.4,0.8109]
[1735113807770,3.6973,3488.0,3487.4,0.8109]
[1735113807964,2.867,3488.0,3487.4,0.8109]
[1735113808151,0.79,3488.2,3487.5,0.03580083]
[1735113808338,2.86706,3487.9,3487.5,0.03580083]
[1735113809635,2.86715,3487.8,3487.5,0.03580083]
[1735113810868,2.86726,3487.7,3487.5,0.03580083]
[1735113811375,2.8673,3487.6,3487.5,0.03580083]
[1735113811682,2.8673,3487.6,3487.4,0.8109]
[1735113812584,2.86715,3487.8,3487.4,0.8109]
[1735113812966,2.86689,3488.1,3487.4,0.8109]
[1735113812967,2.86722,3487.7,3487.5,0.03601913]
[1735113813485,2.8673,3487.6,3487.5,0.03601913]
[1735113813846,2.8673,3487.6,3487.1,0.826]
[1735113814271,2.8673,3487.6,3487.2,0.03607005]
[1735113814946,0.79,3487.6,3487.2,0.03607005]
[1735113815147,2.86749,3487.4,3487.1,0.826]
[1735113815378,2.86749,3487.4,3487.2,0.03607005]
[1735113815555,2.86749,3487.4,3487.1,0.826]
[1735113815767,2.86749,3487.4,3487.2,0.03607005]
[1735113815972,2.86749,3487.4,3487.1,0.826]
[1735113816289,2.86749,3487.4,3487.2,0.03607005]
[1735113816445,3.65733,3487.6,3487.2,0.03607005]
[1735113816651,4.3384452,3487.6,3487.2,0.03607005]
[1735113817754,2.86733,3487.6,3487.2,0.03607005]
[1735113823991,2.86698,3488.0,3487.2,0.03607005]
[1735113824263,0.7942,3488.2,3487.2,0.03607005]
[1735113824420,2.8668,3488.2,3487.4,0.7608]
[1735113824743,2.8668,3488.2,3487.5,0.03669087]
[1735113826127,2.86722,3487.7,3487.5,0.03669087]
[1735113826512,2.8673,3487.6,3487.5,0.03669087]
[1735113826828,2.8673,3487.6,3487.1,0.7608]
[1735113827359,2.8673,3487.6,3487.2,0.0367418]
[1735113827511,2.86739,3487.5,3487.2,0.0367418]
[1735113830135,2.86723,3487.7,3487.2,0.0367418]
[1735113832248,2.86739,3487.5,3487.2,0.0367418]
[1735113833470,3.153953,3487.7,3487.2,0.0367418]
[1735113833675,2.86723,3487.7,3487.2,0.0367418]
[1735113834270,2.86707,3487.9,3487.3,0.7608]
[1735113834649,2.86707,3487.9,3487.4,0.03671905]
[1735113836769,2.86707,3487.9,3487.5,0.9944398]
[1735113837082,2.86707,3487.9,3487.6,0.0366851]
[1735113837938,0.34461793,3487.9,3487.6,0.0366851]
[1735113838143,0.7943,3487.8,3487.6,0.0366851]
[1735113838365,0.57910934,3488.1,3487.6,0.0366851]
[1735113838366,2.86695,3488.1,3487.6,0.0366851]
[1735113838573,2.86682,3488.2,3487.7,0.8186]
[1735113838958,2.86682,3488.2,3487.8,0.03665116]
[1735113839353,2.86682,3488.2,3487.7,0.8186]
[1735113839578,2.86682,3488.2,3487.9,0.03663419]
[1735113839779,2.86682,3488.2,3487.8,0.03665116]
[1735113839969,2.86682,3488.2,3488.0,0.03661722]
[1735113840287,2.86682,3488.2,3488.1,0.03660025]
[1735113840789,2.86682,3488.2,3487.7,1.81353018]
[1735113840990,3.37376057,3488.2,3488.1,0.03655546]
[1735113841159,2.86713,3487.9,3487.6,1.20293157]
[1735113841561,2.86691,3488.1,3487.6,1.20293157]
[1735113842091,0.50696057,3488.2,3487.7,0.7721]
[1735113842092,2.86682,3488.2,3487.7,0.7721]
[1735113843982,2.86682,3488.2,3487.8,2.48842573]
[1735113844569,2.86682,3488.2,3487.9,0.0365894]
[1735113845195,2.86682,3488.2,3487.9,1.03195969]
[1735113846157,2.86682,3488.2,3487.9,0.0365894]
[1735113846896,0.8303,3488.3,3487.9,0.0365894]
[1735113847095,0.8303,3488.3,3488.0,0.7721]
[1735113847596,0.8303,3488.3,3488.1,0.0364043]
[1735113847896,0.8303,3488.3,3488.2,0.7721]
[1735113848080,1.19799742,3488.6,3488.4,0.7721]
[1735113848289,1.97009742,3488.6,3488.4,0.7721]
[1735113848456,1.97009742,3488.6,3488.5,0.03625805]
[1735113849067,0.7721,3488.6,3488.5,0.03625805]
[1735113851014,0.7721,3488.6,3488.5,2.52441833]
[1735113852319,0.7721,3488.6,3488.5,0.03625805]
[1735113855503,0.7721,3488.6,3488.2,1.20293157]
[1735113855710,0.7721,3488.6,3488.5,0.03625805]
[1735113856104,0.7721,3488.6,3488.2,1.20293157]
[1735113856326,0.7721,3488.6,3488.5,0.03431605]
[1735113856484,0.7721,3488.6,3488.1,0.828]
[1735113856685,0.7721,3488.6,3488.5,0.03431605]
[1735113856885,0.7721,3488.6,3488.1,0.828]
[1735113857210,0.7721,3488.6,3488.5,0.03431605]
[1735113857411,0.7721,3488.6,3488.1,0.828]
[1735113857613,0.7721,3488.6,3488.2,0.03436695]
[1735113862220,0.7721,3488.6,3488.3,0.8192]
[1735113862527,0.7721,3488.6,3488.4,0.03433302]
[1735113868456,1.6013,3488.6,3488.4,0.03433302]
[1735113868657,4.46778,3488.6,3488.4,0.03433302]
[1735113868952,1.6013,3488.6,3488.5,0.03428809]
[1735113869283,0.7721,3488.6,3488.1,0.8096]
[1735113869470,0.7721,3488.6,3488.5,0.03428809]
[1735113869766,0.7721,3488.6,3488.2,3.0]
[1735113869973,0.7721,3488.6,3488.5,0.03428809]
[1735113870174,0.7721,3488.6,3488.2,3.0]
[1735113870336,0.7721,3488.6,3488.5,0.03428809]
[1735113870528,0.7721,3488.6,3488.2,3.0]
[1735113870731,0.7721,3488.6,3488.5,0.03428809]
[1735113870937,0.7721,3488.6,3488.2,3.0]
[1735113870938,0.7721,3488.6,3488.2,4.48783881]
[1735113871167,0.7721,3488.6,3488.5,0.03428809]
[1735113871347,0.7721,3488.6,3488.2,4.48783881]
[1735113871548,0.7721,3488.6,3488.5,0.03428809]
[1735113871750,2.86613,3489.1,3488.2,4.48783881]
[1735113871948,2.86613,3489.1,3488.5,0.03428809]
[1735113872134,2.86613,3489.1,3488.2,4.48783881]
[1735113872336,2.86613,3489.1,3488.6,0.03427112]
[1735113872672,2.86613,3489.1,3488.7,0.03425416]
[1735113873034,2.86613,3489.1,3488.8,0.0342372]
[1735113873256,2.86613,3489.1,3488.2,3.0]
[1735113873429,2.86613,3489.1,3488.3,0.03432202]
[1735113875069,0.8292,3489.2,3488.5,0.8096]
[1735113875252,0.8292,3489.5,3488.8,2.86631]
[1735113875566,0.8292,3489.5,3488.9,0.84338367]
[1735113875767,3.69471,3489.8,3488.9,0.84338367]
[1735113876123,4.24218485,3489.8,3488.9,0.84338367]
[1735113876330,1.37667485,3489.8,3488.9,0.84338367]
[1735113876629,2.86567,3489.6,3488.9,0.84338367]
[1735113877871,3.69487,3489.6,3488.9,0.84338367]
[1735113881594,3.69465,3489.9,3488.9,3.84338367]
[1735113882361,3.69465,3489.9,3488.9,6.70954367]
[1735113883796,0.8292,3489.9,3488.9,6.70954367]
[1735113883976,2.86525,3490.1,3489.2,0.8267]
[1735113884364,3.64767,3490.2,3489.3,0.03345844]
[1735113885461,2.86527,3490.1,3489.3,0.03345844]
[1735113886159,0.7825,3490.2,3489.3,0.03345844]
[1735113886661,2.86547,3489.9,3489.4,0.03294359]
[1735113886897,2.86547,3489.9,3489.1,0.8267]
[1735113887403,2.86547,3489.9,3489.2,0.0329775]
[1735113888504,2.86547,3489.9,3489.2,1.02517193]
[1735113889202,2.86527,3490.1,3489.3,0.8267]
[1735113889413,3.64756,3490.4,3489.3,0.8267]
[1735113889633,1.98049742,3490.7,3489.7,0.8267]
[1735113889783,4.84528742,3490.7,3489.7,0.8267]
[1735113890116,1.19799742,3490.7,3489.9,0.8267]
[1735113890629,1.19799742,3490.7,3490.0,0.03262932]
[1735113891074,2.86476,3490.7,3490.0,0.03262932]
[1735113892322,0.7825,3490.5,3490.0,0.03262932]
[1735113892729,2.86524,3490.1,3490.0,0.03262932]
[1735113893089,2.86524,3490.1,3489.7,1.20293157]
[1735113893311,2.86524,3490.1,3490.0,0.03227143]
[1735113893467,3.438269,3490.1,3490.0,0.03227143]
[1735113893672,2.86543,3489.9,3489.5,0.8267]
[1735113893910,2.86505,3490.4,3489.5,0.8267]
[1735113894091,2.8652,3490.2,3489.5,0.8267]
[1735113897826,2.86506,3490.4,3489.5,0.8267]
[1735113899634,0.7825,3490.5,3489.5,0.8267]
[1735113899873,3.58289979,3490.9,3489.3,1.20293157]
[1735113899874,0.7964,3489.9,3489.3,1.20293157]
[1735113900073,2.86566,3489.6,3489.3,1.20293157]
[1735113901366,2.86566,3489.6,3489.1,1.80423754]
[1735113901367,0.7964,3489.9,3489.0,0.8271]
[1735113901567,2.86608,3489.1,3488.8,0.8271]
[1735113901782,0.7964,3489.3,3488.7,1.20293157]
[1735113902292,2.86598,3489.2,3488.7,1.20293157]
[1735113902586,2.86598,3489.2,3488.4,1.20293157]
[1735113903352,2.86623,3488.9,3488.4,1.20293157]
[1735113903548,0.7964,3489.3,3488.2,0.8271]
[1735113903795,2.86607,3489.1,3488.2,0.8271]
[1735113903934,0.7964,3489.3,3488.2,0.8271]
[1735113904287,2.86626,3488.9,3488.2,0.8271]
[1735113904462,2.86626,3488.9,3488.3,0.03238073]
[1735113907137,0.7964,3489.3,3488.3,0.03238073]
[1735113907417,2.86607,3489.1,3488.4,0.8271]
[1735113907557,2.86607,3489.1,3488.4,0.85946377]
[1735113911003,4.23216266,3489.6,3488.4,0.85946377]
[1735113911004,2.86628,3488.9,3488.4,0.85946377]
[1735113911200,0.7964,3489.5,3488.4,0.03236377]
[1735113911399,0.57006266,3489.6,3488.4,0.03236377]
[1735113911400,2.86652,3488.6,3488.4,0.03236377]
[1735113911574,0.7964,3489.3,3488.2,0.8271]
[1735113911777,0.366222,3489.2,3488.5,0.03185771]
[1735113912098,2.86639,3488.7,3488.2,0.8271]
[1735113912267,2.86639,3488.7,3488.6,0.03184075]
[1735113912467,2.86639,3488.7,3488.2,0.8271]
[1735113912896,2.86639,3488.7,3488.3,0.03189164]
[1735113913814,2.86639,3488.7,3488.4,0.03187468]
[1735113914332,2.86625,3488.9,3488.2,0.8271]
[1735113914913,2.86625,3488.9,3488.3,0.03189164]
[1735113917032,2.86625,3488.9,3488.4,0.751]
[1735113917339,2.86609,3489.1,3488.4,0.78287468]
[1735113917657,2.86616,3489.0,3488.4,0.78287468]
[1735113918704,1.147354,3489.4,3488.4,0.78287468]
[1735113918905,2.86632,3488.8,3488.4,0.78287468]
[1735113921603,2.8664,3488.7,3488.4,0.78287468]
[1735113922054,2.8664,3488.7,3487.9,0.751]
[1735113922407,2.86679,3488.3,3488.0,0.0326585]
[1735113922724,2.86678,3488.3,3488.0,0.0326585]
[1735113923865,2.86689,3488.1,3488.0,0.0326585]
[1735113924165,2.86727,3487.7,3487.4,1.20293157]
[1735113924707,0.8134,3488.2,3487.4,1.20293157]
[1735113924961,2.86738,3487.5,3487.4,1.20293157]
[1735113925816,2.86738,3487.5,3487.1,3.15605209]
[1735113925817,2.86738,3487.5,3487.1,0.751]
[1735113929658,0.7825,3488.1,3487.1,0.751]
[1735113929887,2.86774,3487.1,3486.7,0.8154]
[1735113930459,2.86774,3487.1,3486.3,0.8154]
[1735113931549,0.7825,3487.4,3486.3,0.8154]
[1735113931747,3.65004,3487.4,3486.3,0.8154]
[1735113932046,2.86756,3487.3,3486.3,0.8154]
[1735113932481,2.86756,3487.3,3486.3,3.8154]
[1735113934390,5.86649,3488.6,3486.6,2.86808]
[1735113934391,0.7825,3488.0,3486.6,2.86808]
[1735113934687,2.86715,3487.8,3486.7,0.8154]
[1735113934890,2.86715,3487.8,3486.7,0.84718846]
[1735113935492,2.86726,3487.7,3486.7,0.84718846]
[1735113936249,0.7825,3488.0,3486.7,0.84718846]
[1735113936653,3.4280819,3488.1,3486.7,0.84718846]
[1735113936654,2.86768,3487.2,3486.7,0.84718846]
[1735113939079,0.7825,3487.2,3486.7,0.03178846]
[1735113939284,2.86795,3486.8,3486.4,0.8154]
[1735113939593,2.86795,3486.8,3485.7,4.07177157]
[1735113939594,2.86795,3486.8,3485.8,0.8154]
[1735113939951,2.86798,3486.8,3485.8,0.8154]
[1735113940152,0.7825,3487.2,3485.8,0.8154]
[1735113940351,0.7825,3487.2,3485.9,3.8154]
[1735113940352,2.86791,3486.9,3485.9,3.8154]
[1735113942094,2.86771,3487.1,3486.0,0.7592]
[1735113942294,1.148073,3486.8,3486.1,0.8299]
[1735113942494,2.86771,3487.1,3486.1,0.8299]
[1735113942684,2.86771,3487.1,3486.1,37.86849]
[1735113942884,4.015723,3487.1,3486.3,0.8299]
[1735113949500,4.015723,3487.1,3486.4,0.03221407]
[1735113950925,2.86779,3487.0,3486.4,0.03221407]
[1735113954695,2.86787,3486.9,3486.4,0.03221407]
[1735113956532,2.86779,3487.0,3486.4,0.03221407]
[1735113958906,2.86744,3487.5,3486.5,2.86819]
[1735113959112,2.86737,3487.6,3486.6,0.7754]
[1735113959409,4.015225,3487.5,3486.6,0.80787097]
[1735113959710,4.015225,3487.5,3486.7,0.7754]
[1735113959941,2.86757,3487.3,3486.7,0.7754]
[1735113960140,2.86787,3486.9,3486.8,0.03243701]
[1735113960341,2.86787,3486.9,3486.4,0.7754]
[1735113960555,2.86794,3486.9,3486.4,0.7754]
[1735113960761,2.86794,3486.9,3486.5,0.03240406]
[1735113960966,0.7735,3487.2,3486.5,0.03240406]
[1735113960967,2.86796,3486.8,3486.5,0.03240406]
[1735113962241,2.86807,3486.7,3486.5,0.03240406]
[1735113962625,2.86807,3486.7,3486.2,0.7658]
[1735113962830,2.86807,3486.7,3486.6,0.03270034]
[1735113963026,2.86807,3486.7,3486.2,0.7658]
[1735113963603,2.86807,3486.7,3486.3,0.03275129]
[1735113965543,0.7735,3487.2,3486.3,0.03275129]
[1735113965544,2.86789,3486.9,3486.3,0.03275129]
[1735113965880,3.6412,3487.2,3486.4,0.7658]
[1735113966040,2.8677,3487.2,3486.4,0.7658]
[1735113966241,2.8677,3487.2,3486.5,0.03273411]
[1735113966631,2.86772,3487.1,3486.5,0.03273411]
[1735113968173,2.86779,3487.0,3486.5,0.03273411]
[1735113969778,2.86787,3486.9,3486.5,0.03273411]
[1735113970274,2.86796,3486.8,3486.5,0.03273411]
[1735113971072,2.86806,3486.7,3486.5,0.03273411]
[1735113971603,3.979597,3486.9,3486.5,0.03273411]
[1735113971887,0.8249,3487.1,3486.5,0.03273411]
[1735113972049,2.86795,3486.8,3486.5,0.03273411]
[1735113972977,2.86804,3486.7,3486.5,0.03273411]
[1735113973138,2.86812,3486.6,3486.5,0.03273411]
[1735113973658,2.86826,3486.5,3486.1,0.7911]
[1735113975703,2.86805,3486.7,3486.1,0.7911]
[1735113976047,2.02289742,3487.1,3486.1,0.7911]
[1735113976048,2.86815,3486.6,3486.1,0.7911]
[1735113976542,2.02289742,3487.1,3486.1,0.7911]
[1735113976861,0.96879495,3487.0,3486.1,0.7911]
[1735113977022,2.8682,3486.5,3486.1,0.7911]
[1735113977350,2.86828,3486.4,3486.1,0.7911]
[1735113978442,0.96879495,3487.0,3486.1,0.7911]
[1735113978621,2.86836,3486.4,3486.1,0.7911]
[1735113979202,2.86845,3486.3,3485.8,1.99403157]
[1735113979439,0.7566,3486.1,3485.9,0.03277918]
[1735113980252,2.86861,3486.0,3485.9,0.03277918]
[1735113982069,2.86899,3485.6,3485.4,3.48589121]
[1735113982246,2.86861,3486.0,3485.9,0.03312617]
[1735113982569,2.86861,3486.0,3485.4,3.48589121]
[1735113982863,0.362521,3485.9,3485.4,3.48589121]
[1735113983060,2.8688,3485.8,3485.4,3.48589121]
[1735113983649,2.8688,3485.8,3485.1,0.7911]
[1735113984368,0.7566,3486.1,3485.1,0.7911]
[1735113984572,2.86842,3486.3,3485.1,2.86935]
[1735113984764,4.3227954,3486.4,3485.2,0.7911]
[1735113985061,2.86846,3486.2,3485.2,0.7911]
[1735113985364,1.3227954,3486.4,3485.4,0.7911]
[1735113985365,4.1911054,3486.4,3485.4,0.7911]
[1735113985527,1.19799742,3486.5,3485.6,0.7911]
[1735113985718,2.8682,3486.6,3485.6,0.7911]
[1735113985910,2.86825,3486.5,3485.6,0.7911]
[1735113986914,2.86825,3486.5,3485.7,0.99371213]
[1735113987118,0.7566,3486.9,3485.8,0.7911]
[1735113987371,2.86806,3486.7,3485.8,0.7911]
[1735113989519,2.86812,3486.6,3485.8,0.7911]
[1735113990524,0.362472,3486.6,3485.8,0.7911]
[1735113990838,2.86829,3486.4,3485.8,0.7911]
[1735113991464,0.362472,3486.6,3485.8,0.7911]
[1735113991768,2.86838,3486.3,3485.8,0.7911]
[1735113992266,2.86799,3486.8,3485.8,0.7911]
[1735113992439,2.86823,3486.5,3485.8,0.7911]
[1735113993374,2.86804,3486.8,3485.8,0.7911]
[1735113993676,4.53858552,3487.0,3485.8,0.7911]
[1735113994053,2.86801,3486.8,3485.8,0.7911]
[1735113994343,2.86805,3486.7,3485.8,0.7911]
[1735113994523,2.86805,3486.7,3485.9,0.81017543]
[1735113996056,2.86814,3486.6,3485.9,0.81017543]
[1735113997266,2.86823,3486.5,3485.9,0.81017543]
[1735113997598,2.86832,3486.4,3485.9,0.81017543]
[1735113998010,0.8022,3486.5,3485.9,0.81017543]
[1735113998219,2.86848,3486.2,3485.9,0.81017543]
[1735114002673,2.86861,3486.0,3485.9,0.03377543]
[1735114003068,0.367068,3486.2,3485.6,0.7721]
[1735114003323,2.86861,3486.0,3485.9,0.03340597]
[1735114003635,0.8223,3486.1,3485.5,1.20293157]
[1735114003785,3.2743948,3486.0,3485.9,0.03340597]
[1735114003990,2.86894,3485.6,3485.5,1.20293157]
[1735114004185,0.4057848,3486.0,3485.3,1.20293157]
[1735114004369,3.69124,3485.6,3485.4,0.03349093]
[1735114004564,2.86902,3485.5,3485.4,0.03349093]
[1735114005446,3.525046,3485.5,3485.4,0.03349093]
[1735114006036,3.525046,3485.5,3484.8,1.20293157]
[1735114006238,2.86938,3485.1,3484.9,0.03357591]
[1735114006602,2.86944,3485.0,3484.9,0.03357591]
[1735114006926,2.8693,3485.2,3484.9,0.03357591]
[1735114007340,0.8223,3486.0,3485.1,0.7721]
[1735114007522,1.19799742,3486.0,3485.1,0.7721]
[1735114007687,1.19799742,3486.0,3485.3,1.3221]
[1735114007885,1.19799742,3486.0,3485.4,0.7721]
[1735114008146,1.19799742,3486.0,3485.4,0.80632446]
[1735114008442,1.19799742,3486.0,3485.5,0.7721]
[1735114008742,1.19799742,3486.0,3485.6,0.03419048]
[1735114008943,2.86831,3486.4,3485.6,0.03419048]
[1735114009291,2.86801,3486.8,3485.6,0.03419048]
[1735114009528,2.86863,3486.0,3485.6,0.03419048]
[1735114009891,2.86863,3486.0,3485.5,3.25619802]
[1735114010128,2.86863,3486.0,3485.7,0.03417349]
[1735114010330,2.86863,3486.0,3485.6,1.49045881]
[1735114010331,2.86863,3486.0,3485.6,1.52464929]
[1735114010639,2.86863,3486.0,3485.7,0.03417349]
[1735114011808,2.86863,3486.0,3485.5,0.7721]